fUST/lending_fUST_20260626
["ID","MTS","AMOUNT","RATE_DAILY","PERIOD"]
[426492903,1782469832000,-295.25186138,0.0003,2]
[426492902,1782469832000,-292.0,0.0003,2]
[426492901,1782469832000,-292.0,0.0003,2]
[426492899,1782469832000,-292.0,0.0003,2]
[426492906,1782469832000,-635.52668749,0.00030396,15]
[426492898,1782469832000,-292.0,0.0003,2]
[426492896,1782469832000,-269.0,0.0003,2]
[426492893,1782469832000,-269.0,0.0003,2]
[426492891,1782469832000,-170.0,0.0003,2]
[426492895,1782469832000,-269.0,0.0003,2]
[426492897,1782469832000,-272.88889934,0.0003,2]
[426492900,1782469832000,-292.0,0.0003,2]
[426492920,1782469838000,-91.56331251,0.00030396,15]
[426492919,1782469838000,-300.0,0.0003,2]
[426492921,1782469838000,-233.32606859,0.00030396,2]
[426492922,1782469838000,-813.54747937,0.00030396,2]
[426492939,1782469839000,-727.09,0.00030696,15]
[426492941,1782469839000,-727.09,0.00030796,15]
[426492940,1782469839000,-727.09,0.00030746,15]
[426492943,1782469839000,-500.0,0.00030845,2]
[426492942,1782469839000,-278.772945,0.000308,10]
[426492945,1782469839000,-500.0,0.00030845,2]
[426492944,1782469839000,-500.0,0.00030845,2]
[426492951,1782469839000,-500.0,0.00030846,15]
[426492946,1782469839000,-500.0,0.00030845,2]
[426492947,1782469839000,-453.67443658,0.00030845,2]
[426492948,1782469839000,-500.0,0.00030845,2]
[426492953,1782469839000,-727.09,0.00030946,15]
[426492950,1782469839000,-727.09,0.00030846,15]
[426492938,1782469839000,-153.23,0.00030696,15]
[426492954,1782469839000,-727.09,0.00030996,15]
[426492929,1782469839000,-727.09,0.00030496,15]
[426492936,1782469839000,-153.07,0.00030646,15]
[426492935,1782469839000,-326.88958824,0.000306,7]
[426492934,1782469839000,-727.09,0.00030596,15]
[426492933,1782469839000,-153.07,0.00030596,15]
[426492931,1782469839000,-153.07,0.00030546,15]
[426492930,1782469839000,-550.0,0.000305,10]
[426492932,1782469839000,-727.09,0.00030546,15]
[426492928,1782469839000,-153.07,0.00030496,15]
[426492924,1782469839000,-241.07,0.00030421,7]
[426492926,1782469839000,-727.09,0.00030446,15]
[426492927,1782469839000,-386.15,0.00030495,7]
[426492925,1782469839000,-153.07,0.00030446,15]
[426492923,1782469839000,-639.44456038,0.00030396,2]
[426492949,1782469839000,-645.78525294,0.00030845,2]
[426492937,1782469839000,-727.09,0.00030646,15]
[426492952,1782469839000,-727.09,0.00030896,15]
[426492970,1782469839000,-727.09,0.00031546,15]
[426492955,1782469839000,-1269.681,0.00031,20]
[426492956,1782469839000,-371.12061383,0.00031,20]
[426492986,1782469839000,-721.292712,0.00032049,4]
[426492985,1782469839000,-215.66726741,0.00032048,2]
[426492987,1782469839000,-4834.46013484,0.00032049,120]
[426492984,1782469839000,-151.0,0.00032,7]
[426492982,1782469839000,-151.0,0.00032,7]
[426492978,1782469839000,-456.0,0.00031846,15]
[426492981,1782469839000,-221.832444,0.00032,7]
[426492980,1782469839000,-2000.0,0.00032,120]
[426492977,1782469839000,-11.75051904,0.00031846,15]
[426492976,1782469839000,-727.09,0.00031796,15]
[426492979,1782469839000,-259.33948096,0.00031846,15]
[426492975,1782469839000,-727.09,0.00031746,15]
[426492974,1782469839000,-300.0,0.00031733,21]
[426492973,1782469839000,-727.09,0.00031696,15]
[426492983,1782469839000,-151.0,0.00032,7]
[426492972,1782469839000,-727.09,0.00031646,15]
[426492957,1782469839000,-898.55938617,0.00031,20]
[426492958,1782469839000,-727.09,0.00031046,15]
[426492961,1782469839000,-160.80324892,0.00031146,2]
[426492959,1782469839000,-727.09,0.00031096,15]
[426492962,1782469839000,-727.09,0.00031196,15]
[426492971,1782469839000,-727.09,0.00031596,15]
[426492960,1782469839000,-727.09,0.00031146,15]
[426492963,1782469839000,-727.09,0.00031246,15]
[426492966,1782469839000,-727.09,0.00031396,15]
[426492965,1782469839000,-727.09,0.00031346,15]
[426492964,1782469839000,-727.09,0.00031296,15]
[426492967,1782469839000,-727.09,0.00031446,15]
[426492969,1782469839000,-326.88958824,0.000315,7]
[426492968,1782469839000,-727.09,0.00031496,15]
[426492993,1782469841000,-265.62696,0.00032049,120]
[426493014,1782469847000,-18169.15211914,0.00032049,120]
[426493017,1782469847000,-32065.36492486,0.00032049,120]
[426493013,1782469847000,-843.15905417,0.00032049,2]
[426493023,1782469847000,-424.17702131,0.00032049,120]
[426493038,1782469847000,-2081.4457567,0.00032049,120]
[426493021,1782469847000,-749.68230215,0.00032049,120]
[426493044,1782470098000,417.15472785,0.00029055,30]
[426493085,1782470922000,361.58,0.00030136,120]
[426493186,1782471033000,-154.0,0.0003,2]
[426493180,1782471033000,-449.333,0.00028149,2]
[426493181,1782471033000,-300.0,0.00028163,10]
[426493178,1782471033000,-1843.0,0.00028149,2]
[426493177,1782471033000,-300.0,0.00025718,7]
[426493175,1782471033000,-80.69448358,0.00022974,4]
[426493164,1782471033000,-170.65118008,0.00015016,13]
[426493173,1782471033000,-219.30551642,0.00022974,4]
[426493171,1782471033000,-300.0,0.00019895,3]
[426493169,1782471033000,-18.17611835,0.00016438,3]
[426493166,1782471033000,-271.31828053,0.00015168,13]
[426493167,1782471033000,-281.82388165,0.00016438,3]
[426493185,1782471033000,-245.0,0.00029999,2]
[426493184,1782471033000,-208.51675548,0.00029932,6]
[426493187,1782471033000,-188.0,0.0003,2]
[426493206,1782471033000,-445.0,0.00031149,2]
[426493191,1782471033000,-188.0,0.0003,2]
[426493207,1782471033000,-152.0,0.00031222,7]
[426493203,1782471033000,-209.64299588,0.00030342,16]
[426493205,1782471033000,-755.623,0.00031149,2]
[426493189,1782471033000,-188.0,0.0003,2]
[426493201,1782471033000,-212.0,0.0003,2]
[426493204,1782471033000,-90.35700412,0.00030342,16]
[426493200,1782471033000,-204.0,0.0003,2]
[426493202,1782471033000,-284.56393325,0.00030318,2]
[426493197,1782471033000,-204.0,0.0003,2]
[426493199,1782471033000,-204.0,0.0003,2]
[426493198,1782471033000,-204.0,0.0003,2]
[426493195,1782471033000,-194.0,0.0003,2]
[426493193,1782471033000,-188.0,0.0003,2]
[426493194,1782471033000,-188.0,0.0003,2]
[426493196,1782471033000,-204.0,0.0003,2]
[426493216,1782471034000,-100.35571637,0.000324,7]
[426493208,1782471034000,-152.0,0.00031222,7]
[426493209,1782471034000,-152.0,0.00031222,7]
[426493211,1782471034000,-431.880174,0.00031755,2]
[426493212,1782471034000,-421.57952709,0.00032049,2]
[426493214,1782471034000,-300.0,0.00032283,23]
[426493213,1782471034000,-155.57,0.00032215,2]
[426493215,1782471034000,-230.69126,0.000323,120]
[426493210,1782471034000,-295.97261569,0.00031222,7]
[426493219,1782471034000,-238.42058366,0.00032459,2]
[426493225,1782471034000,-6866.39956424,0.0003246,2]
[426493224,1782471034000,-776.13715071,0.0003246,2]
[426493221,1782471034000,-231.46172972,0.0003246,2]
[426493217,1782471034000,-226.53387187,0.000324,7]
[426493222,1782471034000,-1585.39186988,0.0003246,2]
[426493220,1782471034000,-186.88859951,0.00032459,2]
[426493218,1782471034000,-500.0,0.00032459,2]
[426493223,1782471034000,-1497.11482284,0.0003246,2]
[426493287,1782471038000,-4436.69521524,0.0003246,2]
[426493285,1782471038000,-933.43019471,0.0003246,2]
[426493295,1782471038000,-309.97723342,0.0003246,2]
[426493297,1782471038000,-6929.40122868,0.0003246,2]
[426493290,1782471038000,-1928.11111947,0.0003246,2]
[426493442,1782471040000,-10213.2089443,0.0003246,2]
[426493867,1782471048000,-2321.52644053,0.0003246,2]
[426493860,1782471048000,-210.78976354,0.0003246,2]
[426493862,1782471048000,-3105.46212145,0.0003246,2]
[426493909,1782471049000,-1380.48355636,0.00033309,120]
[426493905,1782471049000,-2784.30051451,0.0003246,2]
[426493907,1782471049000,-1019.52,0.000328,20]
[426493908,1782471049000,-431.880174,0.00033092,2]
[426493906,1782471049000,-4221.7211802,0.000327,2]
[426493904,1782471049000,-11717.65546031,0.0003246,2]
[426493903,1782471049000,-45259.15339809,0.0003246,2]
[426493929,1782471443000,912.0,0.0002906,30]
[426493936,1782471668000,160.0,0.00029063,30]
[426493938,1782471692000,-151.0,0.00014717,2]
[426493939,1782471709000,-1121.09919407,0.00014717,13]
[426493940,1782471726000,-4635.59992344,0.00014866,13]
[426493948,1782471743000,-214.88600459,0.00014866,13]
[426493949,1782471761000,-5000.0,0.00015016,13]
[426494070,1782472238000,-615.48104602,0.00015471,7]
[426494069,1782472238000,-615.48104602,0.00015168,7]
[426494071,1782472238000,-615.48104602,0.00015926,7]
[426494075,1782472238000,-516.73245189,0.00016988,7]
[426494073,1782472238000,-615.48104602,0.00016381,7]
[426494074,1782472238000,-758.0,0.00016438,2]
[426494076,1782472238000,-98.74859415,0.00016988,7]
[426494078,1782472238000,-1766.06531406,0.00025407,2]
[426494077,1782472238000,-5000.0,0.00025153,2]
[426494080,1782472238000,-1376.00431845,0.00026742,2]
[426494079,1782472238000,-758.0,0.0002541,2]
[426494072,1782472238000,-326.88958826,0.00015926,7]
[426494085,1782472240000,-2526.78117745,0.00027061,2]
[426494084,1782472240000,-303.43143825,0.00026742,2]
[426494088,1782472243000,-705.20549673,0.00027061,2]
[426494094,1782472246000,-520.0174255,0.00029066,2]
[426494093,1782472246000,-403.29007,0.00029057,2]
[426494092,1782472246000,-403.29007,0.00027883,2]
[426494091,1782472246000,-907.97209452,0.00027061,2]
[426494095,1782472249000,-3797.62248779,0.00029066,2]
[426494096,1782472249000,-4309.62945531,0.00029066,2]
[426494097,1782472249000,-83.67969312,0.0003,2]
[426494111,1782472419000,-2526.78117744,0.00013,2]
[426494112,1782472420000,-303.43143825,0.00013,2]
[426494133,1782472687000,653.8367801,0.0002863,120]
[426494136,1782472752000,-214.42375757,0.00012488,2]
[426494141,1782473015000,1901.11436017,0.00012,2]
[426494142,1782473023000,1764.04410219,0.00012,2]
[426494143,1782473039000,-18068.48061295,0.00013,2]
[426494144,1782473050000,-208.39834663,0.00013233,14]
[426494170,1782473432000,-159.0,0.0003,2]
[426494162,1782473432000,-157.71,0.00019178,2]
[426494163,1782473432000,-513.23,0.00028778,2]
[426494165,1782473432000,-513.5547702,0.00028778,2]
[426494166,1782473432000,-433.45811007,0.00028778,2]
[426494167,1782473432000,-743.46956355,0.00028778,2]
[426494169,1782473432000,-166.0,0.00029981,7]
[426494168,1782473432000,-2553.6960775,0.00029073,2]
[426494164,1782473432000,-323.06873358,0.00028778,2]
[426494172,1782473432000,-158.0,0.0003,2]
[426494174,1782473432000,-158.0,0.0003,2]
[426494178,1782473432000,-268.860046,0.00031404,2]
[426494182,1782473432000,-8919.99032984,0.0003166,120]
[426494176,1782473432000,-268.860046,0.00030135,2]
[426494173,1782473432000,-158.0,0.0003,2]
[426494175,1782473432000,-170.0,0.0003,2]
[426494180,1782473432000,-1229.70181871,0.0003166,120]
[426494171,1782473432000,-163.32030688,0.0003,2]
[426494231,1782473438000,-533.96,0.00032098,5]
[426494240,1782473438000,-160.83441117,0.00033757,2]
[426494237,1782473438000,-745.60309925,0.00033509,120]
[426494242,1782473438000,-500.0,0.00034031,2]
[426494236,1782473438000,-268.860046,0.00032672,2]
[426494238,1782473438000,-338.75549842,0.00033547,2]
[426494241,1782473438000,-268.860046,0.00033941,2]
[426494239,1782473438000,-500.0,0.00033757,2]
[426494235,1782473438000,-300.0,0.00032623,25]
[426494233,1782473438000,-768.69212854,0.00032272,4]
[426494228,1782473438000,-151.0,0.0003186,7]
[426494234,1782473438000,-474.5472082,0.0003246,2]
[426494230,1782473438000,-398.107018,0.0003207,10]
[426494226,1782473438000,-39718.50579248,0.0003176,120]
[426494229,1782473438000,-151.0,0.0003186,7]
[426494225,1782473438000,-160.607,0.00031759,30]
[426494227,1782473438000,-351.65138201,0.00031859,10]
[426494224,1782473438000,-16605.83753117,0.0003166,120]
[426494222,1782473438000,-1609.06079025,0.0003166,120]
[426494223,1782473438000,-3585.36740699,0.0003166,120]
[426494243,1782473438000,-500.0,0.00034305,2]
[426494232,1782473438000,-3317.15425218,0.00032099,2]
[426494244,1782473438000,-500.0,0.00034461,2]
[426494247,1782473438000,-500.0,0.00034461,2]
[426494249,1782473438000,-500.0,0.00034461,2]
[426494248,1782473438000,-500.0,0.00034461,2]
[426494268,1782473438000,-151.5,0.00034461,2]
[426494267,1782473438000,-500.0,0.00034461,2]
[426494263,1782473438000,-527.42975168,0.00034461,2]
[426494266,1782473438000,-151.5,0.00034461,2]
[426494264,1782473438000,-500.0,0.00034461,2]
[426494265,1782473438000,-500.0,0.00034461,2]
[426494262,1782473438000,-500.0,0.00034461,2]
[426494256,1782473438000,-500.0,0.00034461,2]
[426494261,1782473438000,-500.0,0.00034461,2]
[426494258,1782473438000,-500.0,0.00034461,2]
[426494260,1782473438000,-500.0,0.00034461,2]
[426494255,1782473438000,-500.0,0.00034461,2]
[426494257,1782473438000,-500.0,0.00034461,2]
[426494253,1782473438000,-620.91337484,0.00034461,2]
[426494250,1782473438000,-644.9297617,0.00034461,2]
[426494246,1782473438000,-359.7066398,0.00034461,2]
[426494254,1782473438000,-500.0,0.00034461,2]
[426494251,1782473438000,-500.0,0.00034461,2]
[426494245,1782473438000,-140.2933602,0.00034461,2]
[426494259,1782473438000,-500.0,0.00034461,2]
[426494252,1782473438000,-504.25793933,0.00034461,2]
[426494310,1782473439000,-150.5,0.000384,120]
[426494312,1782473439000,-150.5,0.000384,120]
[426494315,1782473439000,-151.0,0.00039,30]
[426494311,1782473439000,-150.5,0.000384,120]
[426494305,1782473439000,-221.23827002,0.00038126,60]
[426494307,1782473439000,-275.830168,0.00038126,7]
[426494308,1782473439000,-300.0,0.00038163,49]
[426494304,1782473439000,-151.5,0.00038126,60]
[426494303,1782473439000,-151.5,0.00038126,60]
[426494314,1782473439000,-151.0,0.00039,30]
[426494302,1782473439000,-230.69126,0.000376,120]
[426494306,1782473439000,-151.0,0.00038126,7]
[426494313,1782473439000,-386.76199191,0.00038917,2]
[426494324,1782473439000,-161.0,0.00039,30]
[426494317,1782473439000,-151.0,0.00039,30]
[426494327,1782473439000,-164.0,0.00039,30]
[426494316,1782473439000,-151.0,0.00039,30]
[426494328,1782473439000,-164.0,0.00039,30]
[426494318,1782473439000,-151.0,0.00039,30]
[426494319,1782473439000,-151.0,0.00039,30]
[426494320,1782473439000,-151.0,0.00039,30]
[426494321,1782473439000,-170.0,0.00039,30]
[426494322,1782473439000,-161.0,0.00039,30]
[426494300,1782473439000,-220.66866203,0.0003697,2]
[426494323,1782473439000,-161.0,0.00039,30]
[426494326,1782473439000,-166.03662343,0.00039,30]
[426494325,1782473439000,-161.0,0.00039,30]
[426494309,1782473439000,-150.0,0.000384,120]
[426494297,1782473439000,-300.0,0.00036599,41]
[426494285,1782473439000,-300.0,0.00034768,37]
[426494298,1782473439000,-781.50729102,0.00036816,120]
[426494329,1782473439000,-165.01152487,0.00039,30]
[426494269,1782473439000,-500.0,0.00034461,2]
[426494279,1782473439000,-500.0,0.00034461,2]
[426494273,1782473439000,-500.0,0.00034461,2]
[426494271,1782473439000,-500.0,0.00034461,2]
[426494277,1782473439000,-500.0,0.00034461,2]
[426494270,1782473439000,-151.5,0.00034461,2]
[426494278,1782473439000,-500.0,0.00034461,2]
[426494274,1782473439000,-158.04337385,0.00034461,2]
[426494276,1782473439000,-500.0,0.00034461,2]
[426494275,1782473439000,-500.0,0.00034461,2]
[426494272,1782473439000,-151.5,0.00034461,2]
[426494280,1782473439000,-500.0,0.00034461,2]
[426494299,1782473439000,-701.57428167,0.00036882,120]
[426494281,1782473439000,-500.0,0.00034461,2]
[426494283,1782473439000,-321.66882233,0.00034735,2]
[426494290,1782473439000,-179.0152,0.00035555,14]
[426494286,1782473439000,-164.06,0.00035105,30]
[426494291,1782473439000,-446.74601265,0.00035822,2]
[426494289,1782473439000,-645.554521,0.0003543,120]
[426494284,1782473439000,-297.29736609,0.00034743,2]
[426494288,1782473439000,-482.5032335,0.00035387,2]
[426494293,1782473439000,-804.17205583,0.00036256,2]
[426494292,1782473439000,-643.33764466,0.00035822,2]
[426494294,1782473439000,-151.0,0.00036478,7]
[426494295,1782473439000,-151.0,0.00036478,7]
[426494296,1782473439000,-268.860046,0.00036478,2]
[426494301,1782473439000,-341.60218328,0.00037573,6]
[426494282,1782473439000,-248.6354141,0.00034461,2]
[426494332,1782473439000,-159.0,0.00039,30]
[426494287,1782473439000,-268.860046,0.00035209,2]
[426494330,1782473439000,-159.0,0.00039,30]
[426494359,1782473439000,-393.80957013,0.0004,120]
[426494363,1782473439000,-853.33078979,0.00040948,2]
[426494366,1782473439000,-2000.0,0.00041096,90]
[426494380,1782473439000,-163.53,0.00041771,30]
[426494370,1782473439000,-1012.53,0.00041771,30]
[426494392,1782473439000,-2165.37183993,0.00045,120]
[426494369,1782473439000,-1215.03,0.00041771,30]
[426494381,1782473439000,-817.67,0.00041771,30]
[426494371,1782473439000,-843.77,0.00041771,30]
[426494372,1782473439000,-703.15,0.00041771,30]
[426494373,1782473439000,-585.95,0.00041771,30]
[426494377,1782473439000,-282.58,0.00041771,30]
[426494375,1782473439000,-406.91,0.00041771,30]
[426494376,1782473439000,-339.09,0.00041771,30]
[426494374,1782473439000,-488.3,0.00041771,30]
[426494378,1782473439000,-235.48,0.00041771,30]
[426494379,1782473439000,-196.24,0.00041771,30]
[426494382,1782473439000,-2000.0,0.00041781,90]
[426494387,1782473439000,-300.0,0.00043155,93]
[426494384,1782473439000,-2000.0,0.00042466,90]
[426494383,1782473439000,-300.0,0.00042444,92]
[426494386,1782473439000,-2000.0,0.00043151,90]
[426494388,1782473439000,-300.0,0.00043761,95]
[426494385,1782473439000,-230.69126,0.000429,120]
[426494390,1782473439000,-300.0,0.00044279,97]
[426494389,1782473439000,-1391.71,0.00043836,90]
[426494391,1782473439000,-300.0,0.00044721,100]
[426494365,1782473439000,-153.46,0.00041,120]
[426494362,1782473439000,-300.0,0.00040639,80]
[426494364,1782473439000,-152.02,0.00040987,2]
[426494360,1782473439000,-625.28573316,0.0004005,6]
[426494334,1782473439000,-159.0,0.00039,30]
[426494333,1782473439000,-159.0,0.00039,30]
[426494335,1782473439000,-159.0,0.00039,30]
[426494337,1782473439000,-165.0,0.00039,30]
[426494338,1782473439000,-168.0826806,0.00039,30]
[426494336,1782473439000,-159.0,0.00039,30]
[426494342,1782473439000,-170.30121829,0.00039,30]
[426494341,1782473439000,-164.0,0.00039,30]
[426494340,1782473439000,-164.0,0.00039,30]
[426494358,1782473439000,-197.74794,0.00039726,28]
[426494344,1782473439000,-170.01613362,0.00039,30]
[426494354,1782473439000,-645.554521,0.00039367,120]
[426494355,1782473439000,-300.0,0.00039499,61]
[426494345,1782473439000,-158.0,0.00039,30]
[426494339,1782473439000,-164.0,0.00039,30]
[426494350,1782473439000,-158.0,0.00039,30]
[426494361,1782473439000,-160863.1726,0.00040444,30]
[426494346,1782473439000,-158.0,0.00039,30]
[426494367,1782473439000,-300.0,0.00041613,91]
[426494357,1782473439000,-171.95,0.00039627,120]
[426494356,1782473439000,-151.0,0.0003955,28]
[426494351,1782473439000,-158.0,0.00039,30]
[426494368,1782473439000,-1458.04,0.00041771,30]
[426494353,1782473439000,-249.16900178,0.0003907,2]
[426494352,1782473439000,-156.5912411,0.00039,30]
[426494348,1782473439000,-158.0,0.00039,30]
[426494343,1782473439000,-162.0,0.00039,30]
[426494331,1782473439000,-159.0,0.00039,30]
[426494347,1782473439000,-158.0,0.00039,30]
[426494349,1782473439000,-158.0,0.00039,30]
[426494395,1782473441000,-1e-08,0.00045,120]
[426494403,1782473443000,-3057.96257806,0.00045,120]
[426494402,1782473443000,-3000.0,0.00045,120]
[426494407,1782473447000,-378.984218,0.00045,2]
[426494406,1782473447000,-1776.665582,0.00045,120]
[426494464,1782474218000,1000.0,0.00027362,30]
[426494466,1782474303000,500.0,0.00028499,30]
[426494469,1782474304000,500.0,0.00028499,30]
[426494468,1782474304000,500.0,0.00028499,30]
[426494467,1782474304000,500.0,0.00028499,30]
[426494470,1782474305000,239.88149511,0.00028499,30]
[426494471,1782474327000,500.0,0.00028496,30]
[426494474,1782474460000,500.0,0.00028496,30]
[426494496,1782474638000,-5000.0,0.00027172,2]
[426494497,1782474638000,-190.325517,0.00027447,2]
[426494499,1782474638000,-151.0,0.000279,19]
[426494503,1782474638000,-500.0,0.00028398,2]
[426494504,1782474638000,-500.0,0.00028398,2]
[426494501,1782474638000,-2256.2687086,0.00028397,2]
[426494502,1782474638000,-2256.26870856,0.00028398,2]
[426494500,1782474638000,-4086.04703542,0.00028396,2]
[426494498,1782474638000,-158.6326,0.000279,2]
[426494547,1782474639000,-4106.09380002,0.00028498,2]
[426494546,1782474639000,-4106.09380002,0.00028498,2]
[426494555,1782474639000,-300.0,0.00028499,2]
[426494544,1782474639000,-4106.09380002,0.00028498,2]
[426494545,1782474639000,-4106.09380002,0.00028498,2]
[426494541,1782474639000,-4106.09380002,0.00028498,2]
[426494543,1782474639000,-4106.09380002,0.00028498,2]
[426494540,1782474639000,-4106.09380002,0.00028498,2]
[426494548,1782474639000,-500.0,0.00028499,7]
[426494539,1782474639000,-4106.09380002,0.00028498,2]
[426494538,1782474639000,-4106.09380002,0.00028498,2]
[426494542,1782474639000,-4106.09380002,0.00028498,2]
[426494549,1782474639000,-153.520561,0.00028499,7]
[426494554,1782474639000,-599.76142208,0.00028499,15]
[426494552,1782474639000,-500.0,0.00028499,15]
[426494551,1782474639000,-500.0,0.00028499,15]
[426494550,1782474639000,-500.0,0.00028499,15]
[426494537,1782474639000,-4106.09380002,0.00028498,2]
[426494566,1782474639000,-1759.080093,0.00028499,7]
[426494556,1782474639000,-1000.0,0.00028499,2]
[426494558,1782474639000,-1000.0,0.00028499,2]
[426494560,1782474639000,-1000.0,0.00028499,2]
[426494559,1782474639000,-1000.0,0.00028499,2]
[426494565,1782474639000,-1000.0,0.00028499,2]
[426494561,1782474639000,-1000.0,0.00028499,2]
[426494562,1782474639000,-1000.0,0.00028499,2]
[426494564,1782474639000,-1000.0,0.00028499,2]
[426494567,1782474639000,-1759.080093,0.00028499,7]
[426494553,1782474639000,-500.0,0.00028499,15]
[426494536,1782474639000,-4106.09380002,0.00028498,2]
[426494526,1782474639000,-717.4459866,0.000284,2]
[426494535,1782474639000,-4106.09380002,0.00028498,2]
[426494507,1782474639000,-500.0,0.00028398,2]
[426494505,1782474639000,-500.0,0.00028398,2]
[426494506,1782474639000,-500.0,0.00028398,2]
[426494509,1782474639000,-500.0,0.00028398,2]
[426494519,1782474639000,-175.18560992,0.00028398,2]
[426494512,1782474639000,-500.0,0.00028398,2]
[426494520,1782474639000,-500.0,0.00028398,2]
[426494511,1782474639000,-500.0,0.00028398,2]
[426494510,1782474639000,-500.0,0.00028398,2]
[426494508,1782474639000,-500.0,0.00028398,2]
[426494513,1782474639000,-500.0,0.00028398,2]
[426494516,1782474639000,-500.0,0.00028398,2]
[426494514,1782474639000,-475.95107127,0.00028398,2]
[426494534,1782474639000,-4106.09380002,0.00028498,2]
[426494515,1782474639000,-500.0,0.00028398,2]
[426494518,1782474639000,-500.0,0.00028398,2]
[426494522,1782474639000,-500.0,0.00028398,2]
[426494521,1782474639000,-500.0,0.00028398,2]
[426494524,1782474639000,-2256.26870856,0.00028399,2]
[426494525,1782474639000,-2256.26870856,0.00028399,2]
[426494523,1782474639000,-500.0,0.00028398,2]
[426494532,1782474639000,-4106.09380002,0.00028498,2]
[426494531,1782474639000,-263.06446213,0.00028498,2]
[426494527,1782474639000,-2256.26870856,0.000284,2]
[426494528,1782474639000,-169.19,0.0002849,3]
[426494533,1782474639000,-4106.09380002,0.00028498,2]
[426494530,1782474639000,-194.72,0.00028496,2]
[426494529,1782474639000,-500.0,0.00028496,2]
[426494517,1782474639000,-500.0,0.00028398,2]
[426494563,1782474639000,-1000.0,0.00028499,2]
[426494572,1782474639000,-1759.080093,0.00028499,7]
[426494557,1782474639000,-1000.0,0.00028499,2]
[426494598,1782474639000,-167.209999,0.00031659,7]
[426494606,1782474639000,-500.0,0.00031759,30]
[426494601,1782474639000,-500.0,0.00031659,30]
[426494602,1782474639000,-151.0,0.00031659,7]
[426494600,1782474639000,-500.0,0.00031659,30]
[426494603,1782474639000,-186.031812,0.00031659,7]
[426494611,1782474639000,-200.0,0.00032843,2]
[426494609,1782474639000,-193.05978323,0.00032283,7]
[426494610,1782474639000,-151.0,0.000328,13]
[426494613,1782474639000,-193.05978323,0.00033233,7]
[426494615,1782474639000,-273.60995439,0.00033422,2]
[426494619,1782474639000,-523.08697563,0.00033825,2]
[426494614,1782474639000,-160.0,0.00033422,2]
[426494604,1782474639000,-530.1567293,0.00031759,30]
[426494612,1782474639000,-331.224912,0.00032922,2]
[426494617,1782474639000,-150.0,0.00033422,2]
[426494621,1782474639000,-200.0,0.00034007,2]
[426494620,1782474639000,-523.08697563,0.00033965,2]
[426494616,1782474639000,-1841.0,0.00033422,2]
[426494623,1782474639000,-331.224912,0.000342,2]
[426494625,1782474639000,-523.08697563,0.00034272,2]
[426494622,1782474639000,-193.05978323,0.00034182,7]
[426494626,1782474639000,-258.21945307,0.0003446,30]
[426494624,1782474639000,-523.08697563,0.00034261,2]
[426494628,1782474639000,-642.69102484,0.00034475,2]
[426494627,1782474639000,-160.67275621,0.00034475,2]
[426494568,1782474639000,-1759.080093,0.00028499,7]
[426494629,1782474639000,-1446.05480589,0.00034475,2]
[426494618,1782474639000,-200.0,0.00033425,2]
[426494605,1782474639000,-500.0,0.00031759,30]
[426494630,1782474639000,-601.78363023,0.00034475,2]
[426494607,1782474639000,-520.19816249,0.00031759,30]